Workbook

Sheet 2007.9
A1: 库存管理统计表
A2: 统计时间 2007年8月 | F2: 仓库管理员 章程 | I2: 成本基数 80％
A3: 库存代码 | B3: 名称 | C3: 上月结转 | D3: 本月入库 | E3: 本月出库 | F3: 当前数目 | G3: 标准库存量 | H3: 溢短 | I3: 单价 | J3: 成本 | K3: 库存金额
A4: 10231 | B4: X型背包 | C4: 124 | D4: 545 | E4: 91 | F4: =C4+D4-E4 -> 578 | G4: 300 | H4: =F4-G4 -> 278 | I4: 150 | J4: =I4*$K$4 -> 51565865.4 | K4: =J4*E4 -> 144442.2
A5: 10232 | B5: X型运动鞋 | C5: 556 | D5: 145 | E5: 114 | F5: =C5+D5-E5 -> 587 | G5: 300 | H5: =F5-G5 -> 287 | I5: 275 | J5: =I5*$K$5 -> 58327500 | K5: =J5*E5 -> 212100
A6: 10233 | B6: X型太阳帽 | C6: 563 | D6: 344 | E6: 235 | F6: =C6+D6-E6 -> 672 | G6: 300 | H6: =F6-G6 -> 372 | I6: 185 | J6: =I6*$K$6 -> 74405520 | K6: =J6*E6 -> 17485297200
A7: 10234 | B7: X型太阳镜 | C7: 545 | D7: 235 | E7: 265 | F7: 515 | G7: 300 | H7: 215 | I7: 95 | J7: =I7*$K$7 -> 1746622.5 | K7: =J7*E7 -> 18385.5
A8: 10235 | B8: Y型运动水壶 | C8: 125 | D8: 326 | E8: 56 | F8: 395 | G8: 300 | H8: 95 | I8: 158 | J8: =I8*$K$8 -> 17693235 | K8: =J8*E8 -> 990821160
A9: 10236 | B9: Y型太阳帽 | C9: 545 | D9: 200 | E9: 250 | F9: 495 | G9: 300 | H9: 195 | I9: 185 | J9: =I9*$K$9 -> 22582365.4 | K9: =J9*E9 -> 122066.84
A10: 10237 | B10: Y型太阳镜 | C10: 254 | D10: 654 | E10: 81 | F10: 827 | G10: 300 | H10: 527 | I10: 165 | J10: =I10*$K$10 -> 15760552.5 | K10: 95518.5
A11: 10238 | B11: Z型水壶 | C11: 598 | D11: 344 | E11: 368 | F11: 574 | G11: 300 | H11: 274 | I11: 303.8 | J11: =I11*$K$11 -> 37083905.99 | K11: 122066.84
A12: 10239 | B12: Z型太阳帽 | C12: 564 | D12: 345 | E12: 236 | F12: 673 | G12: 300 | H12: 373 | I12: 218.4 | J12: =I12*$K$12 -> 22470791.62 | K12: 102888.24
A13: 10240 | B13: Z型太阳镜 | C13: 235 | D13: 246 | E13: 162 | F13: 319 | G13: 300 | H13: 19 | I13: 98 | J13: =I13*$K$13 -> 476620.452 | K13: 10316.46
A14: 10241 | B14: Z型背包 | C14: 598 | D14: 244 | E14: 501 | F14: 341 | G14: 300 | H14: 41 | I14: 101 | J14: =I14*$K$14 -> 2434978.7 | K14: 24108.7
A15: 10242 | B15: Z型运动鞋 | C15: 356 | D15: 356 | E15: 103 | F15: 609 | G15: 300 | H15: 309 | I15: 123 | J15: =I15*$K$15 -> 170520 | K15: 8526
A16: 10243 | B16: Q型背包 | C16: 351 | D16: 254 | E16: 301 | F16: 304 | G16: 300 | H16: 4 | I16: 402 | J16: =I16*$K$16 -> 34389331.2 | K16: 85545.6
A17: 10244 | B17: Q型运动鞋 | C17: 168 | D17: 544 | E17: 105 | F17: 607 | G17: 300 | H17: 307 | I17: 325 | J17: =I17*$K$17 -> 44880062.5 | K17: 138092.5
A18: 10245 | B18: Q型运动水壶 | C18: 689 | D18: 266 | E18: 436 | F18: 519 | G18: 300 | H18: 219 | I18: 194 | J18: =I18*$K$18 -> 13673158.8 | K18: 70480.2
A19: 10246 | B19: Q型太阳帽 | C19: 124 | D19: 545 | E19: 91 | F19: 578 | G19: 300 | H19: 278 | I19: 357 | J19: =I19*$K$19 -> 51565865.4 | K19: 144442.2
A20: 10247 | B20: Q型太阳镜 | C20: 455 | D20: 246 | E20: 268 | F20: 433 | G20: 300 | H20: 133 | I20: 342 | J20: =I20*$K$20 -> 35451788.4 | K20: 103660.2
A21: 10248 | B21: I型背包 | C21: 574 | D21: 240 | E21: 364 | F21: 450 | G21: 300 | H21: 150 | I21: 490 | J21: =I21*$K$21 -> 75631500 | K21: 154350
A22: 10249 | B22: I型运动鞋 | C22: 454 | D22: 644 | E22: 120 | F22: 978 | G22: 300 | H22: 678 | I22: 334 | J22: =I22*$K$22 -> 76371237.6 | K22: 228656.4
A23: 10250 | B23: I型运动水壶 | C23: 157 | D23: 165 | E23: 68 | F23: 254 | G23: 300 | H23: -46 | I23: 195 | J23: =I23*$K$23 -> 6760845 | K23: 34671
A24: 10251 | B24: I型太阳帽 | C24: 454 | D24: 231 | E24: 310 | F24: 375 | G24: 300 | H24: 75 | I24: 312 | J24: =I24*$K$24 -> 25552800 | K24: 81900
A25: 10252 | B25: I型太阳镜 | C25: 431 | D25: 55 | E25: 203 | F25: 283 | G25: 300 | H25: -17 | I25: 217 | J25: =I25*$K$25 -> 9328330.9 | K25: 42987.7
A26: 10253 | B26: W型背包 | C26: 384 | D26: 445 | E26: 193 | F26: 636 | G26: 300 | H26: 336 | I26: 125 | J26: =I26*$K$26 -> 36061.2 | K26: 4006.8
A27: 10254 | B27: W型运动鞋 | C27: 346 | D27: 135 | E27: 106 | F27: 375 | G27: 300 | H27: 75 | I27: 456 | J27: =I27*$K$27 -> 54583200 | K27: 119700
A28: 10255 | B28: W型运动水壶 | C28: 256 | D28: 45 | E28: 84 | F28: 217 | G28: 300 | H28: -83 | I28: 424 | J28: =I28*$K$28 -> 27307974.4 | K28: 64405.6
A29: 10256 | B29: W型太阳帽 | C29: 284 | D29: 105 | E29: 107 | F29: 282 | G29: 300 | H29: -18 | I29: 178 | J29: =I29*$K$29 -> 6254421.6 | K29: 35137.2
A30: 10257 | B30: W型太阳镜 | C30: 267 | D30: 251 | E30: 93 | F30: 425 | G30: 300 | H30: 125 | I30: 243 | J30: =I30*$K$30 -> 17567077.5 | K30: 72292.5

Sheet Sheet2

Sheet Sheet3
